Workbook

Sheet Sheet2
A1: TransNo | B1: SuppID(T) | C1: Invoice date | D1: Pay date | E1: Amount | F1: InvoiceNo | G1: Days between Invoice Date and Pay Date
A2: 2018952 | B2: SIA Design Build | C2: 2016-06-19 | D2: 2019-06-11 | E2: -18853.43 | F2: 190606INV_PUBHG | G2: =D2-C2 -> 1087
A3: 2023209 | B3: TCB(Cleaning & Waste Mgmt) | C3: 2016-09-08 | D3: 2019-09-24 | E3: -99 | F3: 1884 | G3: 1111
A4: 2049911 | B4: County Gate Properties (Surrey) Limited | C4: 2017-01-22 | D4: 2022-02-01 | E4: -12000 | F4: 220117 | G4: 1836
A5: 2025720 | B5: Mitie Landscapes Ltd | C5: 2017-03-31 | D5: 2019-11-28 | E5: -288 | F5: 79337/91411878 | G5: 972
A6: 2025721 | B6: Mitie Landscapes Ltd | C6: 2017-03-31 | D6: 2019-11-28 | E6: -432 | F6: 79337/91411879 | G6: 972
A7: 2033345 | B7: Morfeys Removals | C7: 2017-04-10 | D7: 2020-07-28 | E7: -298.2 | F7: 13772 | G7: 1205
A8: 2033346 | B8: Morfeys Removals | C8: 2017-04-10 | D8: 2020-07-28 | E8: -151.2 | F8: 13735 | G8: 1205
A9: 2033347 | B9: Morfeys Removals | C9: 2017-04-10 | D9: 2020-07-28 | E9: -100.8 | F9: 13731 | G9: 1205
A10: 2033348 | B10: Morfeys Removals | C10: 2017-04-10 | D10: 2020-07-28 | E10: -176.4 | F10: 13730 | G10: 1205
A11: 2033349 | B11: Morfeys Removals | C11: 2017-04-10 | D11: 2020-07-28 | E11: -67.2 | F11: 13710 | G11: 1205
A12: 2033350 | B12: Morfeys Removals | C12: 2017-04-10 | D12: 2020-07-28 | E12: -102.6 | F12: 13701 | G12: 1205
A13: 2021200 | B13: PPMA Ltd | C13: 2017-08-06 | D13: 2019-07-30 | E13: -60 | F13: 4296 | G13: 723
A14: 2015339 | B14: Broomgrove Residents Association | C14: 2017-11-26 | D14: 2019-04-11 | E14: -20 | F14: 1310 | G14: 501
A15: 2015340 | B15: Broomgrove Residents Association | C15: 2017-11-26 | D15: 2019-04-11 | E15: -300 | F15: 1311 | G15: 501
A16: 2024184 | B16: RIBA Architecture | C16: 2018-01-03 | D16: 2019-10-22 | E16: -66.82 | F16: 470107 | G16: 657
A17: 2019150 | B17: MB Hotels Ltd | C17: 2018-02-16 | D17: 2019-06-13 | E17: -185 | F17: 3382 | G17: 482
A18: 2033344 | B18: Morfeys Removals | C18: 2018-02-21 | D18: 2020-07-28 | E18: -147.6 | F18: 14972 | G18: 888
A19: 2017014 | C19: 2018-04-19 | D19: 2019-04-25 | E19: -93.8 | F19: 206592 | G19: 371
A20: 2024168 | B20: RIBA Architecture | C20: 2018-04-26 | D20: 2019-10-29 | E20: -44 | F20: 500549 | G20: 551
A21: 2025363 | B21: Engage Services Limited | C21: 2018-04-27 | D21: 2019-11-21 | E21: -72 | F21: CS11910 | G21: 573
A22: 2019156 | B22: MB Hotels Ltd | C22: 2018-06-29 | D22: 2019-06-13 | E22: -245 | F22: 3551 | G22: 349
A23: 2025973 | B23: HMC Compliance Ltd | C23: 2018-06-30 | D23: 2019-12-10 | E23: -889.2 | F23: INV/2004 | G23: 528
A24: 2021201 | B24: PPMA Ltd | C24: 2018-07-01 | D24: 2019-07-30 | E24: -80 | F24: 5109 | G24: 394
A25: 2025022 | C25: 2018-07-04 | D25: 2019-11-12 | E25: -22.05 | F25: HA1393 | G25: 496
A26: 2033343 | B26: Morfeys Removals | C26: 2018-07-10 | D26: 2020-07-28 | E26: -297.36 | F26: 15576 | G26: 749
A27: 2021940 | B27: Zurich Municipal(Main Account) | C27: 2018-07-11 | D27: 2019-08-20 | E27: -112 | F27: 17H0711200 | G27: 405
A28: 2016951 | B28: CIRIA | C28: 2018-07-19 | D28: 2019-04-30 | E28: -285 | F28: 18381 | G28: 285
A29: 2016952 | B29: CIRIA | C29: 2018-07-19 | D29: 2019-04-30 | E29: -285 | F29: 18383 | G29: 285
A30: 2021941 | B30: Zurich Municipal(Main Account) | C30: 2018-07-19 | D30: 2019-08-20 | E30: -3357.11 | F30: 17H0715711 | G30: 397
A31: 2005310 | B31: Ark William Parker Academy | C31: 2018-07-24 | D31: 2019-07-16 | E31: -5000 | F31: WISI512 | G31: 357
A32: 2021373 | B32: Reef Environmental Solutions Ltd | C32: 2018-07-31 | D32: 2019-08-06 | E32: -45 | F32: P17279 | G32: 371
A33: 2016056 | B33: InfoAktiv Ltd | C33: 2018-08-05 | D33: 2019-04-02 | E33: -6228 | F33: 547 | G33: 240
A34: 2022402 | B34: White Rock Theatre Hastings Ltd | C34: 2018-09-01 | D34: 2019-09-17 | E34: -55000 | F34: SIN002477 | G34: 381
A35: 2022503 | B35: Direct Tyre Management Ltd | C35: 2018-09-02 | D35: 2019-09-10 | E35: -297.54 | F35: IV1172159 | G35: 373
A36: 2022523 | B36: Huyam Saif | C36: 2018-09-02 | D36: 2019-09-05 | E36: -2265 | F36: 209273 | G36: 368
A37: 2016152 | B37: Ricochet | C37: 2018-09-04 | D37: 2019-04-16 | E37: -324 | F37: INV41682 | G37: 224
A38: 2022490 | C38: 2018-09-05 | D38: 2019-09-05 | E38: -880 | F38: 2 | G38: 365
A39: 2022575 | C39: 2018-09-06 | D39: 2019-09-10 | E39: -84 | F39: 19206 | G39: 369
A40: 2018594 | B40: British Telecommunications plc | C40: 2018-09-24 | D40: 2019-06-04 | E40: -476.23 | F40: 202877 | G40: 253
A41: 2023418 | C41: 2018-09-26 | D41: 2019-10-01 | E41: -2860 | F41: 209759 | G41: 370
A42: 2023587 | B42: Harmony Homes Development Services Ltd | C42: 2018-10-23 | D42: 2019-10-08 | E42: -13200 | F42: 1043 | G42: 350
A43: 2023588 | B43: Harmony Homes Development Services Ltd | C43: 2018-10-23 | D43: 2019-10-08 | E43: -11400 | F43: 1044 | G43: 350
A44: 2023589 | B44: Harmony Homes Development Services Ltd | C44: 2018-10-23 | D44: 2019-10-08 | E44: -3600 | F44: 1045 | G44: 350
A45: 2016514 | B45: Rother District Council - MAIN ACCOUNT | C45: 2018-11-09 | D45: 2019-05-07 | E45: 15000 | F45: 85218469 | G45: 179
A46: 2023590 | B46: Harmony Homes Development Services Ltd | C46: 2018-11-20 | D46: 2019-10-08 | E46: -6000 | F46: 1047 | G46: 322
A47: 2023591 | B47: Harmony Homes Development Services Ltd | C47: 2018-11-20 | D47: 2019-10-08 | E47: -5400 | F47: 1048 | G47: 322
A48: 2023592 | B48: Harmony Homes Development Services Ltd | C48: 2018-11-20 | D48: 2019-10-08 | E48: -2400 | F48: 1049 | G48: 322
A49: 2015474 | B49: Link Asset Services | C49: 2018-11-21 | D49: 2019-04-09 | E49: -3000 | F49: 6002006677 | G49: 139
A50: 2025228 | B50: Wealden and Eastbourne Lifeline (Welbeing) | C50: 2018-11-29 | D50: 2020-01-16 | E50: 64.26 | F50: 35327 | G50: 413
A51: 2025386 | B51: R French & Son Limited | C51: 2018-11-30 | D51: 2019-11-21 | E51: -516 | F51: 80130 | G51: 356
A52: 2025387 | B52: R French & Son Limited | C52: 2018-11-30 | D52: 2019-11-21 | E52: -516 | F52: 80279 | G52: 356
A53: 2025388 | B53: R French & Son Limited | C53: 2018-11-30 | D53: 2019-11-21 | E53: -516 | F53: 80382 | G53: 356
A54: 2025389 | B54: R French & Son Limited | C54: 2018-11-30 | D54: 2019-11-21 | E54: -516 | F54: 80514 | G54: 356
A55: 2016379 | B55: Ovenden Allworks Ltd | C55: 2018-12-12 | D55: 2019-04-09 | E55: -12232.8 | F55: 1367 | G55: 118
A56: 2023593 | B56: Harmony Homes Development Services Ltd | C56: 2018-12-20 | D56: 2019-10-08 | E56: -4800 | F56: 1051 | G56: 292
A57: 2023594 | B57: Harmony Homes Development Services Ltd | C57: 2018-12-20 | D57: 2019-10-08 | E57: -5400 | F57: 1052 | G57: 292
A58: 2017042 | B58: Hastings & Rother YMCA | C58: 2018-12-31 | D58: 2019-04-25 | E58: -52 | F58: 201908 | G58: 115
A59: 2027088 | B59: Hillcrest Community Partnership Ltd | C59: 2019-01-01 | D59: 2020-01-09 | E59: -30.6 | F59: INV-15433 | G59: 373
A60: 2026238 | B60: Specialist Hygiene Services Ltd | C60: 2019-01-01 | D60: 2019-12-12 | E60: -25973.05 | F60: 38856 | G60: 345
A61: 2023147 | B61: St Paul's CE Academy | C61: 2019-01-01 | D61: 2019-09-24 | E61: -2700 | F61: PASI585 | G61: 266
A62: 2012269 | B62: The Federation of Burial and Cremation Authorities | C62: 2019-01-01 | D62: 2019-04-30 | E62: -1127.76 | F62: M/ME058/02 | G62: 119
A63: 2025340 | B63: Engage Services Limited | C63: 2019-01-04 | D63: 2019-11-19 | E63: -96 | F63: CCS13932 | G63: 319
A64: 2016533 | B64: Samurai | C64: 2019-01-04 | D64: 2019-04-23 | E64: -3369.6 | F64: TM087 | G64: 109
A65: 2027149 | B65: Call Flow Solutions Ltd | C65: 2019-01-08 | D65: 2020-01-14 | E65: -371.33 | F65: 442615 | G65: 371
A66: 2017033 | B66: Hala Zineddin | C66: 2019-01-08 | D66: 2019-04-25 | E66: -315.15 | F66: 16-21 | G66: =D66-C66 -> 107
A67: 2027071 | B67: Happy Drains Ltd | C67: 2019-01-08 | D67: 2020-01-09 | E67: 318 | F67: 00068727CR | G67: 366
A68: 2016995 | B68: Jigsaw YMCA Hastings (Jigsaw Day Nursery) | C68: 2019-01-09 | D68: 2019-04-30 | E68: -271.4 | F68: 5516 | G68: 111
A69: 2016994 | B69: Jigsaw YMCA Hastings (Jigsaw Day Nursery) | C69: 2019-01-09 | D69: 2019-04-25 | E69: -271.4 | F69: 5530 | G69: 106
A70: 2027181 | B70: Co-operative Funeralcare | C70: 2019-01-10 | D70: 2020-01-14 | E70: -1516 | F70: F44587-30225 | G70: 369
A71: 2012569 | B71: Co-operative Funeralcare | C71: 2019-01-10 | D71: 2019-04-30 | E71: -1357 | F71: F44587-30126 | G71: 110
A72: 2021563 | B72: Active Sussex | C72: 2019-01-14 | D72: 2019-08-13 | E72: -300 | F72: 1819-104 | G72: 211
A73: 2016711 | B73: CIPFA Business Limited | C73: 2019-01-14 | D73: 2019-04-16 | E73: -354 | F73: 3140497 | G73: 92
A74: 2024887 | B74: RIBA Architecture | C74: 2019-01-14 | D74: 2019-11-07 | E74: -111.6 | F74: 0061151/A | G74: 297
A75: 2041951 | B75: Rother District Council - MAIN ACCOUNT | C75: 2019-01-14 | D75: 2021-05-04 | E75: -15000 | F75: 85223915 | G75: 841
A76: 2032007 | B76: Zurich Municipal(Main Account) | C76: 2019-01-15 | D76: 2020-06-18 | E76: -112 | F76: 17H0711200. | G76: 520
A77: 2019196 | B77: ISR (UK) Consultancy & Training | C77: 2019-01-16 | D77: 2019-06-13 | E77: -55.93 | F77: 2019-01-16 | G77: 148
A78: 2019065 | B78: The Contemporary Music School | C78: 2019-01-16 | D78: 2019-06-11 | E78: -12.5 | F78: 6207 | G78: 146
A79: 2019067 | B79: The Contemporary Music School | C79: 2019-01-16 | D79: 2019-06-11 | E79: -12.5 | F79: 6230 | G79: 146
A80: 2013068 | B80: Dyer and Hobbis Ltd | C80: 2019-01-21 | D80: 2019-04-11 | E80: -780 | F80: 5641 | G80: 80
A81: 2025309 | B81: Meridian Marquees | C81: 2019-01-22 | D81: 2019-11-19 | E81: -6036 | F81: 210590 | G81: 301
A82: 2017025 | C82: 2019-01-22 | D82: 2019-04-25 | E82: -320 | F82: 206608 | G82: 93
A83: 2017645 | B83: Safe Partnership Ltd | C83: 2019-01-23 | D83: 2019-05-14 | E83: -258 | F83: 30892 | G83: 111
A84: 2023595 | B84: Harmony Homes Development Services Ltd | C84: 2019-01-27 | D84: 2019-10-08 | E84: -5400 | F84: 1054 | G84: 254
A85: 2023596 | B85: Harmony Homes Development Services Ltd | C85: 2019-01-27 | D85: 2019-10-08 | E85: -4800 | F85: 1055 | G85: 254
A86: 2016299 | C86: 2019-01-29 | D86: 2019-04-04 | E86: -1560 | F86: 206170 | G86: 65
A87: 2018074 | B87: The Contemporary Music School | C87: 2019-01-29 | D87: 2019-05-23 | E87: -12.5 | F87: 6554 | G87: 114
A88: 2018075 | B88: The Contemporary Music School | C88: 2019-01-29 | D88: 2019-05-23 | E88: -12.5 | F88: 6555 | G88: 114
A89: 2018077 | B89: The Contemporary Music School | C89: 2019-01-29 | D89: 2019-05-23 | E89: -12.5 | F89: 6552 | G89: 114
A90: 2018078 | B90: The Contemporary Music School | C90: 2019-01-29 | D90: 2019-05-23 | E90: -12.5 | F90: 6553 | G90: 114
A91: 2014649 | B91: White Rock Neighbourhood Ventures | C91: 2019-01-29 | D91: 2019-04-09 | E91: -5000 | F91: INV-0500 | G91: 70
A92: 2016135 | B92: 247 Transport Solutions Ltd | C92: 2019-01-30 | D92: 2019-04-16 | E92: -104.83 | F92: 441420 | G92: 76
A93: 2016136 | B93: 247 Transport Solutions Ltd | C93: 2019-01-30 | D93: 2019-04-11 | E93: -312.11 | F93: 441408 | G93: 71
A94: 2016725 | B94: CIPFA Business Limited | C94: 2019-01-30 | D94: 2019-04-16 | E94: -468 | F94: 3141368 | G94: 76
A95: 2016510 | B95: CIPFA Business Limited | C95: 2019-01-30 | D95: 2019-04-09 | E95: -354 | F95: 3141521 | G95: 69
A96: 2016334 | B96: Clyde & Co | C96: 2019-01-30 | D96: 2019-04-09 | E96: -438 | F96: 1100-0125213 | G96: 69
A97: 2017302 | B97: Coffey Geotechnics Limited | C97: 2019-01-30 | D97: 2019-05-14 | E97: -1057.5 | F97: 2956 | G97: 104
A98: 2016134 | B98: EE Ltd | C98: 2019-01-30 | D98: 2019-04-16 | E98: -30 | F98: 1282815168 | G98: 76
A99: 2013486 | B99: Falon Nameplates Limited | C99: 2019-01-30 | D99: 2019-05-02 | E99: -179.22 | F99: 2190217 | G99: 92
A100: 2016505 | B100: Pitney Bowes Software Europe Limited | C100: 2019-01-30 | D100: 2019-04-09 | E100: -13112.72 | F100: IN246124 | G100: 69
A101: 2016133 | B101: Rother District Council | C101: 2019-01-30 | D101: 2019-04-02 | E101: -1920 | F101: 85224632 | G101: 62
A102: 2016132 | B102: Sovereign Alarms | C102: 2019-01-30 | D102: 2019-05-02 | E102: -378 | F102: 857590 | G102: 92
A103: 2018076 | B103: The Contemporary Music School | C103: 2019-01-30 | D103: 2019-05-23 | E103: -12.5 | F103: 6551 | G103: 113
A104: 2020560 | B104: Weightmans LLP | C104: 2019-01-30 | D104: 2019-07-16 | E104: -901 | F104: 1845005 | G104: 167
A105: 2021859 | B105: Billingsgate Seafood Training School | C105: 2019-01-31 | D105: 2019-08-20 | E105: -500 | F105: 19/1100 | G105: 201
A106: 2017612 | B106: CIPFA Business Limited | C106: 2019-01-31 | D106: 2019-05-09 | E106: -2802 | F106: 314023 | G106: 98
A107: 2016726 | B107: CIPFA Business Limited | C107: 2019-01-31 | D107: 2019-04-16 | E107: -6012 | F107: 3141989 | G107: 75
A108: 2020586 | B108: Pivotal (formerly Jade Security Services) | C108: 2019-01-31 | D108: 2019-07-18 | E108: -2848.26 | F108: 18943 | G108: 168
A109: 2016724 | B109: Media South | C109: 2019-02-01 | D109: 2019-04-16 | E109: -180 | F109: 245 | G109: 74
A110: 2024521 | B110: Pevensey & Cuckmere Water Level Mgmt Board | C110: 2019-02-01 | D110: 2019-10-29 | E110: -5811 | F110: PJC/CC/SPECIAL LEVIES2ND INSTALMENT | G110: 270
A111: 2022149 | B111: Pevensey & Cuckmere Water Level Mgmt Board | C111: 2019-02-01 | D111: 2019-08-22 | E111: -5811 | F111: PJC/cc/Special Levies | G111: 202
A112: 2015547 | B112: White Rock Theatre Hastings Ltd | C112: 2019-02-01 | D112: 2019-04-09 | E112: 10249.86 | F112: SCR000317 | G112: 67
A113: 2016775 | B113: Booker & Best Ltd | C113: 2019-02-04 | D113: 2019-04-18 | E113: -5.4 | F113: B0003425A | G113: 73
A114: 2013995 | B114: Tourism South East | C114: 2019-02-07 | D114: 2019-08-13 | E114: -1674 | F114: 76013 | G114: 187
A115: 2020233 | B115: Keep Britain Tidy | C115: 2019-02-08 | D115: 2019-08-13 | E115: -954 | F115: INV_S004386 | G115: 186
A116: 2014289 | B116: Silvey Fleet (formerly Fuelcards Onroute) | C116: 2019-02-12 | D116: 2019-04-04 | E116: -243.84 | F116: 266547 | G116: 51
A117: 2026144 | B117: Town & Country Housing | C117: 2019-02-12 | D117: 2019-12-10 | E117: -1317.08 | F117: 205333 | G117: 301
A118: 2014266 | B118: DC Property Maintenance | C118: 2019-02-13 | D118: 2019-04-11 | E118: -168 | F118: K135478 | G118: 57
A119: 2023597 | B119: Harmony Homes Development Services Ltd | C119: 2019-02-13 | D119: 2019-10-08 | E119: -5400 | F119: 1058 | G119: 237
A120: 2023598 | B120: Harmony Homes Development Services Ltd | C120: 2019-02-13 | D120: 2019-10-08 | E120: -5100 | F120: 1059 | G120: 237
A121: 2014248 | B121: Myriad Plantroom Services | C121: 2019-02-13 | D121: 2019-04-09 | E121: -1707.84 | F121: 7721 | G121: 55
A122: 2018533 | B122: Seaview Projects | C122: 2019-02-13 | D122: 2019-05-30 | E122: -1166 | F122: 1045-19 | G122: 106
A123: 2018534 | B123: Seaview Projects | C123: 2019-02-13 | D123: 2019-05-30 | E123: -2883 | F123: 1044-19 | G123: 106
A124: 2018535 | B124: Seaview Projects | C124: 2019-02-13 | D124: 2019-05-30 | E124: -1174 | F124: 1047-19 | G124: 106
A125: 2018536 | B125: Seaview Projects | C125: 2019-02-13 | D125: 2019-05-30 | E125: -2887 | F125: 1046-19 | G125: 106
A126: 2016991 | B126: D B Auto Repairs Ltd | C126: 2019-02-15 | D126: 2019-04-30 | E126: -231.58 | F126: A1900433 | G126: 74
A127: 2022014 | B127: Grime2Shine | C127: 2019-02-15 | D127: 2019-08-22 | E127: -75 | F127: 716 | G127: 188
A128: 2015341 | B128: Broomgrove Residents Association | C128: 2019-02-17 | D128: 2019-04-11 | E128: -250 | F128: 1333 | G128: 53
A129: 2016576 | B129: Andrew Varrall Heating | C129: 2019-02-18 | D129: 2019-04-11 | E129: -225.96 | F129: 13403 | G129: 52
A130: 2016647 | B130: Rosanna Leal | C130: 2019-02-19 | D130: 2019-04-16 | E130: -1330 | F130: 6 | G130: =D130-C130 -> 56
A131: 2017056 | B131: RICS(Royal Instiute Chartered Surveyors) | C131: 2019-02-20 | D131: 2019-04-25 | E131: -258 | F131: 02349121FTI | G131: 64
A132: 2017086 | B132: Canon (UK) Ltd | C132: 2019-02-21 | D132: 2019-05-14 | E132: -3530.92 | F132: 770700816 | G132: 82
A133: 2016989 | B133: D B Auto Repairs Ltd | C133: 2019-02-21 | D133: 2019-04-30 | E133: -213.93 | F133: A1900495 | G133: 68
A134: 2017211 | B134: Central Law Training Limited | C134: 2019-02-22 | D134: 2019-04-30 | E134: -240 | F134: 4192142 | G134: 67
A135: 2016883 | B135: Central Law Training Limited | C135: 2019-02-22 | D135: 2019-04-18 | E135: -240 | F135: 4192141 | G135: 55
A136: 2016428 | B136: Facultatieve Technologies | C136: 2019-02-22 | D136: 2019-05-02 | E136: -1063.7 | F136: 19100766 | G136: 69
A137: 2016304 | B137: Hastings Wise Storage | C137: 2019-02-25 | D137: 2019-04-04 | E137: -62 | F137: 7464 | G137: 38
A138: 2018236 | B138: Hedley Visick Ltd | C138: 2019-02-25 | D138: 2019-05-28 | E138: -4085.14 | F138: 205515 | G138: 92
A139: 2026143 | B139: Town & Country Housing | C139: 2019-02-25 | D139: 2019-12-10 | E139: -1040.36 | F139: 205510 | G139: 288
A140: 2016119 | B140: Cornerstone Barristers | C140: 2019-02-26 | D140: 2019-04-11 | E140: -1200 | F140: 143252 | G140: 44
A141: 2029245 | B141: Sussex Community Development Assocation | C141: 2019-02-26 | D141: 2020-03-31 | E141: -65 | F141: 22015 | G141: 399
A142: 2019564 | B142: Stiles Harold Williams | C142: 2019-02-27 | D142: 2019-06-25 | E142: -1599.18 | F142: 611891 | G142: 118
A143: 2019565 | B143: Stiles Harold Williams | C143: 2019-02-27 | D143: 2019-06-25 | E143: -1629.05 | F143: 611892 | G143: 118
A144: 2019563 | B144: Stiles Harold Williams | C144: 2019-02-27 | D144: 2019-06-20 | E144: -1734.6 | F144: 611890 | G144: 113
A145: 2019566 | B145: Stiles Harold Williams | C145: 2019-02-27 | D145: 2019-06-20 | E145: -4593.7 | F145: 611893 | G145: 113
A146: 2019567 | B146: Stiles Harold Williams | C146: 2019-02-27 | D146: 2019-06-20 | E146: -1908.31 | F146: 611894 | G146: 113
A147: 2018537 | B147: Wicksteed Leisure Ltd | C147: 2019-02-28 | D147: 2019-06-04 | E147: -15600 | F147: 805123 | G147: 96
A148: 2018040 | B148: AAT | C148: 2019-03-01 | D148: 2019-05-21 | E148: -94 | F148: 20250709 | G148: 81
A149: 2018041 | B149: AAT | C149: 2019-03-01 | D149: 2019-05-21 | E149: -94 | F149: 20250710 | G149: 81
A150: 2015264 | B150: Burlingham Memorial Solutions Limited | C150: 2019-03-01 | D150: 2019-05-02 | E150: -306 | F150: 191 | G150: 62
A151: 2015266 | B151: Burlingham Memorial Solutions Limited | C151: 2019-03-01 | D151: 2019-05-02 | E151: -285.6 | F151: 192 | G151: 62
A152: 2014899 | B152: Co-operative Funeralcare | C152: 2019-03-01 | D152: 2019-04-30 | E152: -1389 | F152: F44587-30138 | G152: 60
A153: 2019076 | B153: Ford Lease | C153: 2019-03-01 | D153: 2019-06-11 | E153: -299.47 | F153: 10512486 | G153: 102
A154: 2016757 | B154: Hillcrest Community Partnership Ltd | C154: 2019-03-01 | D154: 2019-04-18 | E154: -38.4 | F154: 206492 | G154: 48
A155: 2016451 | B155: Hillcrest Community Partnership Ltd | C155: 2019-03-01 | D155: 2019-04-09 | E155: -38.4 | F155: INV-14927 | G155: 39
A156: 2016117 | C156: 2019-03-01 | D156: 2019-04-18 | E156: -450 | F156: 18 | G156: 48
A157: 2017625 | B157: Phase Electrical Distributors Ltd | C157: 2019-03-01 | D157: 2019-05-16 | E157: -396 | F157: H260193 | G157: 76
A158: 2016321 | C158: 2019-03-01 | D158: 2019-04-09 | E158: -9368.44 | F158: 4574 | G158: 39
A159: 2015548 | B159: White Rock Theatre Hastings Ltd | C159: 2019-03-01 | D159: 2019-04-09 | E159: -55000 | F159: SIN002358 | G159: 39
A160: 2020288 | B160: Harold Road Surgery | C160: 2019-03-04 | D160: 2019-07-09 | E160: -22.5 | F160: KS/JAR/34818 | G160: 127
A161: 2017284 | B161: Coffey Geotechnics Limited | C161: 2019-03-05 | D161: 2019-05-14 | E161: -615 | F161: 3072 | G161: 70
A162: 2017778 | B162: Landmark Chambers | C162: 2019-03-06 | D162: 2019-05-16 | E162: -180 | F162: INVGDW196 | G162: 71
A163: 2019279 | B163: The Safety Supply Company | C163: 2019-03-06 | D163: 2019-06-18 | E163: -336 | F163: 8072322 | G163: 104
A164: 2021700 | C164: 2019-03-07 | D164: 2019-08-20 | E164: -150 | F164: 2019-03-07 | G164: 166
A165: 2018176 | B165: East Sussex County Council | C165: 2019-03-07 | D165: 2019-05-28 | E165: -555.5 | F165: 8002025532 | G165: 82
A166: 2016645 | B166: Sanctuary Housing Association | C166: 2019-03-07 | D166: 2019-04-16 | E166: -30399.12 | F166: 6030085916 | G166: 40
A167: 2015277 | B167: F G Marshall Limited | C167: 2019-03-08 | D167: 2019-05-14 | E167: -468.59 | F167: 10593 | G167: 67
A168: 2016735 | B168: HOWCH | C168: 2019-03-10 | D168: 2019-04-18 | E168: -2830 | F168: 1 | G168: 39
A169: 2015431 | B169: Animal Wardens Ltd | C169: 2019-03-12 | D169: 2019-04-18 | E169: 25 | F169: SCN-46 | G169: 37
A170: 2016756 | B170: Ark Little Ridge Primary Academy | C170: 2019-03-12 | D170: 2019-04-18 | E170: -21 | F170: 206493 | G170: 37
A171: 2018017 | B171: CIPFA Business Limited | C171: 2019-03-12 | D171: 2019-05-21 | E171: -59 | F171: 3143143 | G171: 70
A172: 2021353 | B172: Shred-it | C172: 2019-03-12 | D172: 2019-08-20 | E172: -1101.6 | F172: 9503513070 | G172: 161
A173: 2020061 | B173: St Martin Cleaning | C173: 2019-03-12 | D173: 2019-07-02 | E173: -250 | F173: 208037 | G173: 112
A174: 2019066 | B174: The Contemporary Music School | C174: 2019-03-12 | D174: 2019-06-11 | E174: -27.5 | F174: 7388 | G174: 91
A175: 2017567 | B175: Chapel Park Community Centre | C175: 2019-03-13 | D175: 2019-05-14 | E175: -250 | F175: 3 | G175: 62
A176: 2020021 | B176: Coastal Electrical | C176: 2019-03-13 | D176: 2019-07-04 | E176: -134.95 | F176: TN37 6JT 09 01 | G176: 113
A177: 2020056 | B177: Coastal Electrical | C177: 2019-03-13 | D177: 2019-07-02 | E177: -134.95 | F177: TN376JT0901 | G177: 111
A178: 2018287 | C178: 2019-03-14 | D178: 2019-05-30 | E178: -150 | F178: 207247 | G178: 77
A179: 2018153 | B179: The Contemporary Music School | C179: 2019-03-14 | D179: 2019-05-28 | E179: -13.75 | F179: 7450 | G179: 75
A180: 2017454 | B180: Lovair Ltd | C180: 2019-03-15 | D180: 2019-05-07 | E180: -5856.24 | F180: 76687 | G180: 53
A181: 2015563 | B181: Securitas Security Services Ltd | C181: 2019-03-15 | D181: 2019-05-14 | E181: -540 | F181: S-SIN1081257 | G181: 60
A182: 2015564 | B182: Securitas Security Services Ltd | C182: 2019-03-15 | D182: 2019-05-14 | E182: -540 | F182: S-SIN1081258 | G182: 60
A183: 2017032 | C183: 2019-03-19 | D183: 2019-04-25 | E183: -894.1 | F183: 23-38 | G183: 37
A184: 2017005 | C184: 2019-03-19 | D184: 2019-04-25 | E184: -1877.65 | F184: 2022-01-01 | G184: 37
A185: 2016990 | B185: D B Auto Repairs Ltd | C185: 2019-03-20 | D185: 2019-04-30 | E185: -340.95 | F185: A1900791 | G185: 41
A186: 2020911 | B186: Fresh Visions | C186: 2019-03-20 | D186: 2019-07-25 | E186: -2500 | F186: SIFV/0004 | G186: 127
A187: 2017954 | B187: The Contemporary Music School | C187: 2019-03-20 | D187: 2019-05-21 | E187: -13.75 | F187: 8039 | G187: 62
A188: 2020578 | B188: Gartec Limited | C188: 2019-03-21 | D188: 2019-07-16 | E188: -650.4 | F188: 819839 | G188: 117
A189: 2021722 | B189: Lex Autolease | C189: 2019-03-21 | D189: 2019-09-04 | E189: -204.56 | F189: EXI1266522 | G189: 167
A190: 2020566 | B190: National Express Ltd | C190: 2019-03-21 | D190: 2019-08-08 | E190: 101 | F190: ARCN/00036048 | G190: 140
A191: 2020234 | B191: Office Depot (UK) Ltd | C191: 2019-03-21 | D191: 2019-07-09 | E191: -7.58 | F191: 971580401 | G191: 110
A192: 2015809 | B192: Youngs Forestry Services | C192: 2019-03-21 | D192: 2019-04-30 | E192: -2880 | F192: 685 | G192: 40
A193: 2016161 | B193: Alfa Electric Ltd | C193: 2019-03-22 | D193: 2019-05-21 | E193: -5657.39 | F193: 31534 | G193: 60
A194: 2017000 | B194: Bexhill Museum Limited | C194: 2019-03-22 | D194: 2019-05-07 | E194: -4741.6 | F194: T/023 | G194: =D194-C194 -> 46
A195: 2017513 | B195: Equita Ltd | C195: 2019-03-22 | D195: 2019-05-07 | E195: -80.2 | F195: 1054530 | G195: 46
A196: 2018888 | B196: Ghyllside | C196: 2019-03-22 | D196: 2019-06-06 | E196: -3922 | F196: 23098 | G196: 76
A197: 2017674 | B197: Rother District Council - MAIN ACCOUNT | C197: 2019-03-22 | D197: 2019-05-14 | E197: -2234.05 | F197: 2022-01-25 | G197: 53
A198: 2016121 | B198: Sellick Partnership Limited | C198: 2019-03-22 | D198: 2019-04-25 | E198: -2027.16 | F198: INV264630 | G198: 34
A199: 2017254 | B199: Hastings Wise Storage | C199: 2019-03-25 | D199: 2019-05-02 | E199: -62 | F199: 7803 | G199: 38
A200: 2042984 | C200: 2019-03-25 | D200: 2021-06-03 | E200: -283.33 | F200: 219317 | G200: 801
... 3362 more rows
